fUSD/lending_fUSD_20260616
["ID","MTS","AMOUNT","RATE_DAILY","PERIOD"]
[425179942,1781563859000,-472.94405678,0.00029387,2]
[425179946,1781563859000,-1007.36,0.0002939,30]
[425179943,1781563859000,-737.67,0.00029387,7]
[425179945,1781563859000,-242.0407088,0.00029387,7]
[425179949,1781563859000,-1177.59,0.000294,7]
[425179944,1781563859000,-461.9300948,0.00029387,7]
[425179952,1781563859000,-2822.99,0.00029467,2]
[425179953,1781563859000,-1974.44,0.00029467,2]
[425179957,1781563859000,-1104.0,0.00029508,7]
[425179954,1781563859000,-2494.67,0.00029467,2]
[425179956,1781563859000,-1691.59,0.00029485,30]
[425179955,1781563859000,-1071.62,0.00029485,30]
[425179958,1781563859000,-654.84,0.00029508,7]
[425179906,1781563859000,-494.17059957,0.00029381,7]
[425179934,1781563859000,-487.01314678,0.00029386,7]
[425179933,1781563859000,-478.36083792,0.00029384,7]
[425179959,1781563859000,-1112.9,0.00029508,7]
[425179931,1781563859000,-307.14559469,0.00029384,7]
[425179932,1781563859000,-504.28504956,0.00029384,7]
[425179904,1781563859000,-473.57668737,0.00029381,7]
[425179901,1781563859000,-501.44234758,0.00029381,7]
[425179908,1781563859000,-759.99145332,0.00029381,7]
[425179910,1781563859000,-581.67550482,0.00029381,7]
[425179914,1781563859000,-706.53378527,0.00029381,7]
[425179912,1781563859000,-393.92513854,0.00029381,7]
[425179918,1781563859000,-571.27773093,0.00029381,7]
[425179915,1781563859000,-603.37651296,0.00029381,7]
[425179911,1781563859000,-465.67940772,0.00029381,7]
[425179913,1781563859000,-450.67094483,0.00029381,7]
[425179917,1781563859000,-202.4671844,0.00029381,7]
[425179916,1781563859000,-289.66128846,0.00029381,7]
[425179902,1781563859000,-437.51469018,0.00029381,7]
[425179930,1781563859000,-541.97766937,0.00029384,7]
[425179909,1781563859000,-629.74493777,0.00029381,7]
[425179929,1781563859000,-218.16141472,0.00029384,7]
[425179926,1781563859000,-272.41782362,0.00029384,7]
[425179925,1781563859000,-565.89254802,0.00029384,7]
[425179924,1781563859000,-457.80264855,0.00029384,7]
[425179928,1781563859000,-499.03487601,0.00029384,7]
[425179927,1781563859000,-488.61420928,0.00029384,7]
[425179923,1781563859000,-458.99188184,0.00029384,7]
[425179921,1781563859000,-214.69624306,0.00029384,7]
[425179919,1781563859000,-491.07824823,0.00029381,7]
[425179920,1781563859000,-436.07532407,0.00029384,7]
[425179922,1781563859000,-203.03940094,0.00029384,7]
[425179998,1781563860000,-1974.44,0.00029802,7]
[425179997,1781563860000,-2822.99,0.00029802,7]
[425179999,1781563860000,-2494.67,0.00029802,7]
[425179992,1781563860000,-1691.59,0.00029652,7]
[425179990,1781563860000,-2494.67,0.00029634,30]
[425179995,1781563860000,-2152159.35830551,0.000298,2]
[425179996,1781563860000,-2859.7,0.00029802,7]
[425179994,1781563860000,-57346.08228156,0.00029799,2]
[425179989,1781563860000,-1974.44,0.00029634,30]
[425179991,1781563860000,-1071.62,0.00029652,7]
[425179993,1781563860000,-400.0,0.0002977,2]
[425180010,1781563860000,-343.161993,0.000299,7]
[425180009,1781563860000,-76848.10149278,0.000299,2]
[425180004,1781563860000,-379.0,0.00029866,7]
[425180001,1781563860000,-1156.59,0.00029815,7]
[425180000,1781563860000,-563.0,0.00029807,4]
[425180003,1781563860000,-1691.59,0.00029819,2]
[425180006,1781563860000,-171.12174107,0.00029883,7]
[425180005,1781563860000,-1502.7,0.00029875,7]
[425180008,1781563860000,-200.45298319,0.000299,2]
[425180007,1781563860000,-57222.52826382,0.000299,2]
[425180012,1781563860000,-1000.0,0.00029906,7]
[425180015,1781563860000,-423.73897357,0.00029922,7]
[425179988,1781563860000,-2822.99,0.00029634,30]
[425180002,1781563860000,-1071.62,0.00029819,2]
[425179987,1781563860000,-2859.7,0.00029634,30]
[425179968,1781563860000,-1017.53085005,0.00029533,5]
[425179980,1781563860000,-419.0,0.00029566,2]
[425180016,1781563860000,-221.99829012,0.00029922,7]
[425179965,1781563860000,-804.17102365,0.00029514,2]
[425179963,1781563860000,-668.65185756,0.00029514,2]
[425179960,1781563860000,-544.16,0.00029508,7]
[425179964,1781563860000,-151.0,0.00029514,2]
[425179961,1781563860000,-602.53,0.00029508,7]
[425179962,1781563860000,-203.65936251,0.0002951,2]
[425179972,1781563860000,-1101.37180458,0.00029533,5]
[425179966,1781563860000,-1000.0,0.00029524,7]
[425179975,1781563860000,-1500.0,0.00029534,15]
[425179969,1781563860000,-1052.27585672,0.00029533,5]
[425179973,1781563860000,-1084.87551073,0.00029533,5]
[425179967,1781563860000,-1103.63801634,0.00029533,5]
[425179971,1781563860000,-1089.522065,0.00029533,5]
[425179976,1781563860000,-150.0,0.00029534,2]
[425179974,1781563860000,-1787.02964447,0.00029533,5]
[425179970,1781563860000,-1036.87914991,0.00029533,5]
[425179979,1781563860000,-934.0,0.00029566,2]
[425179984,1781563860000,-341.946264,0.000296,7]
[425179977,1781563860000,-3558.0,0.00029566,2]
[425179986,1781563860000,-1000.0,0.00029613,7]
[425179982,1781563860000,-346.161993,0.000296,7]
[425179983,1781563860000,-346.161993,0.000296,14]
[425179978,1781563860000,-1359.0,0.00029566,2]
[425179985,1781563860000,-341.946264,0.000296,14]
[425179981,1781563860000,-207.39179017,0.00029581,2]
[425180014,1781563860000,-833.91797539,0.00029922,7]
[425180025,1781563860000,-225.98900644,0.00029922,7]
[425180021,1781563860000,-173.85584648,0.00029922,7]
[425180052,1781563860000,-593.03957959,0.0002993,5]
[425180047,1781563860000,-203.16343688,0.00029922,7]
[425180048,1781563860000,-349.95237561,0.00029922,7]
[425180045,1781563860000,-391.87495836,0.00029922,7]
[425180054,1781563860000,-655.88264872,0.00029941,7]
[425180053,1781563860000,-547.9112366,0.00029941,7]
[425180049,1781563860000,-612.45017878,0.00029922,7]
[425180055,1781563860000,-728.6395024,0.00029941,7]
[425180050,1781563860000,-773.92391074,0.00029922,7]
[425180051,1781563860000,-156.95062839,0.00029929,2]
[425180056,1781563860000,-550.89511788,0.00029941,7]
[425180062,1781563860000,-406.07880189,0.00029953,7]
[425180058,1781563860000,-153.7061673,0.00029946,20]
[425180059,1781563860000,-654.1129861,0.0002995,7]
[425180061,1781563860000,-668.58979677,0.00029953,7]
[425180060,1781563860000,-386.27756377,0.00029953,7]
[425180063,1781563860000,-656.27203527,0.00029953,7]
[425180064,1781563860000,-786.44820827,0.00029953,7]
[425180065,1781563860000,-460.71839203,0.00029953,7]
[425180067,1781563860000,-229.40959686,0.00029953,7]
[425180066,1781563860000,-427.04543393,0.00029953,7]
[425180069,1781563860000,-655.74848544,0.00029953,7]
[425180070,1781563860000,-658.89413276,0.00029954,7]
[425180071,1781563860000,-660.89165878,0.00029954,7]
[425180019,1781563860000,-233.65659571,0.00029922,7]
[425180046,1781563860000,-711.15900448,0.00029922,7]
[425180044,1781563860000,-519.8339472,0.00029922,7]
[425180057,1781563860000,-621.35661961,0.00029941,7]
[425180043,1781563860000,-754.97380753,0.00029922,7]
[425180038,1781563860000,-690.669843,0.00029922,7]
[425180013,1781563860000,-726.55773901,0.00029922,7]
[425180011,1781563860000,-343.161993,0.000299,14]
[425180017,1781563860000,-374.48539809,0.00029922,7]
[425180018,1781563860000,-377.16803743,0.00029922,7]
[425180020,1781563860000,-493.38853462,0.00029922,7]
[425180022,1781563860000,-535.39091988,0.00029922,7]
[425180033,1781563860000,-745.61134219,0.00029922,7]
[425180068,1781563860000,-631.43558316,0.00029953,7]
[425180027,1781563860000,-165.42854728,0.00029922,7]
[425180026,1781563860000,-624.34247867,0.00029922,7]
[425180024,1781563860000,-643.4469917,0.00029922,7]
[425180028,1781563860000,-426.17726546,0.00029922,7]
[425180023,1781563860000,-404.91350889,0.00029922,7]
[425180035,1781563860000,-434.93314767,0.00029922,7]
[425180032,1781563860000,-331.01355507,0.00029922,7]
[425180037,1781563860000,-245.26871337,0.00029922,7]
[425180039,1781563860000,-465.64138747,0.00029922,7]
[425180040,1781563860000,-491.5474789,0.00029922,7]
[425180036,1781563860000,-451.41326177,0.00029922,7]
[425180034,1781563860000,-201.02374185,0.00029922,7]
[425180042,1781563860000,-651.36864344,0.00029922,7]
[425180030,1781563860000,-150.98317296,0.00029922,7]
[425180031,1781563860000,-160.17862399,0.00029922,7]
[425180029,1781563860000,-232.5667205,0.00029922,7]
[425180041,1781563860000,-795.55389975,0.00029922,7]
[425180107,1781563861000,-211.82838949,0.00029959,7]
[425180106,1781563861000,-304.0452185,0.00029959,7]
[425180109,1781563861000,-613.73384381,0.00029959,7]
[425180108,1781563861000,-731.10198336,0.00029959,7]
[425180113,1781563861000,-769.20957607,0.00029959,7]
[425180103,1781563861000,-649.35086237,0.00029959,7]
[425180111,1781563861000,-685.10061662,0.00029959,5]
[425180105,1781563861000,-604.72591903,0.00029959,7]
[425180114,1781563861000,-159.91427372,0.00029959,7]
[425180104,1781563861000,-1422.41666182,0.00029959,7]
[425180112,1781563861000,-630.59207571,0.00029959,2]
[425180110,1781563861000,-654.38234953,0.00029959,7]
[425180115,1781563861000,-615.90679307,0.0002996,7]
[425180132,1781563861000,-44571.13892796,0.0003,7]
[425180123,1781563861000,-1071.64,0.00029985,30]
[425180125,1781563861000,-150.0,0.00029996,2]
[425180122,1781563861000,-1063.57,0.00029985,30]
[425180119,1781563861000,-2822.99,0.00029969,2]
[425180117,1781563861000,-500.0,0.00029966,19]
[425180118,1781563861000,-2859.7,0.00029969,2]
[425180121,1781563861000,-2494.67,0.00029969,2]
[425180116,1781563861000,-669.77686981,0.0002996,7]
[425180120,1781563861000,-1974.44,0.00029969,2]
[425180128,1781563861000,-108673.0574145,0.0003,5]
[425180126,1781563861000,-5000.0,0.0003,3]
[425180096,1781563861000,-754.52339735,0.00029957,7]
[425180124,1781563861000,-1691.6,0.00029985,30]
[425180097,1781563861000,-651.48561238,0.00029957,7]
[425180077,1781563861000,-590.88770781,0.00029954,7]
[425180102,1781563861000,-389.7033202,0.00029959,2]
[425180134,1781563861000,-78649.54171106,0.0003,7]
[425180078,1781563861000,-600.8945931,0.00029954,7]
[425180073,1781563861000,-839.65991702,0.00029954,7]
[425180072,1781563861000,-1013.32193776,0.00029954,7]
[425180075,1781563861000,-775.56733976,0.00029954,7]
[425180074,1781563861000,-371.39524113,0.00029954,7]
[425180076,1781563861000,-620.90587696,0.00029954,7]
[425180081,1781563861000,-311.19252055,0.00029954,7]
[425180085,1781563861000,-736.61737234,0.00029954,7]
[425180080,1781563861000,-804.50201728,0.00029954,7]
[425180082,1781563861000,-579.32257692,0.00029954,7]
[425180089,1781563861000,-435.71392533,0.00029956,7]
[425180101,1781563861000,-440.27894487,0.00029959,2]
[425180086,1781563861000,-18821.40760664,0.00029954,2]
[425180083,1781563861000,-404.93436881,0.00029954,7]
[425180084,1781563861000,-761.70364124,0.00029954,7]
[425180088,1781563861000,-722.6368925,0.00029956,7]
[425180087,1781563861000,-436.32282945,0.00029956,7]
[425180098,1781563861000,-665.37983468,0.00029957,7]
[425180091,1781563861000,-611.98917579,0.00029957,7]
[425180099,1781563861000,-672.38006608,0.00029957,7]
[425180100,1781563861000,-637.81445056,0.00029957,7]
[425180092,1781563861000,-610.4035314,0.00029957,7]
[425180095,1781563861000,-418.4975787,0.00029957,7]
[425180093,1781563861000,-649.95774194,0.00029957,7]
[425180094,1781563861000,-544.83564723,0.00029957,7]
[425180090,1781563861000,-484.08141761,0.00029956,7]
[425180136,1781563861000,-10062.95336297,0.0003,7]
[425180079,1781563861000,-942.04504702,0.00029954,7]
[425180129,1781563861000,-14584.38227881,0.0003,2]
[425180174,1781563861000,-12499.99,0.0003,2]
[425180163,1781563861000,-17738.44,0.0003,2]
[425180167,1781563861000,-22499.99,0.0003,2]
[425180165,1781563861000,-2499.99,0.0003,2]
[425180172,1781563861000,-3919.53,0.0003,2]
[425180168,1781563861000,-2499.99,0.0003,2]
[425180166,1781563861000,-24999.99,0.0003,2]
[425180173,1781563861000,-20632.49411396,0.0003,7]
[425180170,1781563861000,-24999.99,0.0003,2]
[425180171,1781563861000,-2499.99,0.0003,2]
[425180169,1781563861000,-20632.49411396,0.0003,7]
[425180176,1781563861000,-2499.99,0.0003,2]
[425180164,1781563861000,-22499.99,0.0003,2]
[425180186,1781563861000,-15000.0,0.0003,2]
[425180180,1781563861000,-9999.98,0.0003,2]
[425180179,1781563861000,-12499.98,0.0003,2]
[425180181,1781563861000,-1023.25,0.0003,2]
[425180175,1781563861000,-24999.99,0.0003,2]
[425180177,1781563861000,-22499.99,0.0003,2]
[425180185,1781563861000,-2500.0,0.0003,2]
[425180178,1781563861000,-2500.0,0.0003,2]
[425180182,1781563861000,-6776.39,0.0003,2]
[425180184,1781563861000,-10000.0,0.0003,2]
[425180188,1781563861000,-2648.96,0.0003,2]
[425180189,1781563861000,-25000.0,0.0003,2]
[425180131,1781563861000,-40625.72853273,0.0003,2]
[425180183,1781563861000,-650.0,0.0003,2]
[425180157,1781563861000,-1786.44,0.0003,30]
[425180187,1781563861000,-12500.0,0.0003,2]
[425180162,1781563861000,-18191.1,0.0003,2]
[425180158,1781563861000,-647.34,0.0003,2]
[425180127,1781563861000,-62955.76581214,0.0003,2]
[425180130,1781563861000,-369.6237698,0.0003,30]
[425180133,1781563861000,-44571.13892796,0.0003,7]
[425180135,1781563861000,-78649.54171106,0.0003,7]
[425180139,1781563861000,-277.37556655,0.0003,7]
[425180149,1781563861000,-2499.99,0.0003,2]
[425180140,1781563861000,-898.18605344,0.0003,60]
[425180138,1781563861000,-277.37556655,0.0003,7]
[425180141,1781563861000,-211.459999,0.0003,11]
[425180142,1781563861000,-2000.0,0.0003,14]
[425180144,1781563861000,-751.1369444,0.0003,2]
[425180143,1781563861000,-11000.0,0.0003,10]
[425180137,1781563861000,-10062.95336297,0.0003,7]
[425180147,1781563861000,-12297.93,0.0003,2]
[425180159,1781563861000,-2500.0,0.0003,2]
[425180160,1781563861000,-2499.99,0.0003,2]
[425180161,1781563861000,-2499.99,0.0003,2]
[425180155,1781563861000,-22500.0,0.0003,2]
[425180145,1781563861000,-102373.96305153,0.0003,7]
[425180156,1781563861000,-341.24,0.0003,2]
[425180151,1781563861000,-1391.63,0.0003,2]
[425180152,1781563861000,-25000.0,0.0003,2]
[425180154,1781563861000,-2500.0,0.0003,2]
[425180150,1781563861000,-17724.84,0.0003,2]
[425180148,1781563861000,-24999.99,0.0003,2]
[425180146,1781563861000,-4160.0,0.0003,3]
[425180153,1781563861000,-12500.0,0.0003,2]
[425180232,1781563862000,-500.0,0.00030082,14]
[425180227,1781563862000,-500.0,0.00030082,14]
[425180223,1781563862000,-800.0,0.00030048,11]
[425180233,1781563862000,-500.0,0.00030082,14]
[425180216,1781563862000,-805.64967789,0.00030048,11]
[425180230,1781563862000,-500.0,0.00030082,14]
[425180226,1781563862000,-500.0,0.00030082,14]
[425180225,1781563862000,-400.0,0.0003007,2]
[425180228,1781563862000,-500.0,0.00030082,14]
[425180222,1781563862000,-800.0,0.00030048,11]
[425180229,1781563862000,-500.0,0.00030082,14]
[425180224,1781563862000,-800.0,0.00030048,11]
[425180236,1781563862000,-500.0,0.00030082,14]
[425180235,1781563862000,-500.0,0.00030082,14]
[425180243,1781563862000,-500.0,0.00030082,14]
[425180234,1781563862000,-500.0,0.00030082,14]
[425180244,1781563862000,-500.0,0.00030082,14]
[425180239,1781563862000,-500.0,0.00030082,14]
[425180237,1781563862000,-500.0,0.00030082,14]
[425180238,1781563862000,-500.0,0.00030082,14]
[425180241,1781563862000,-500.0,0.00030082,14]
[425180242,1781563862000,-500.0,0.00030082,14]
[425180240,1781563862000,-500.0,0.00030082,14]
[425180245,1781563862000,-396.26359173,0.00030082,14]
[425180218,1781563862000,-800.0,0.00030048,11]
[425180231,1781563862000,-500.0,0.00030082,14]
[425180217,1781563862000,-800.0,0.00030048,11]
[425180200,1781563862000,-6624.59,0.0003,2]
[425180214,1781563862000,-800.0,0.00030048,11]
[425180196,1781563862000,-20632.49411397,0.0003,7]
[425180197,1781563862000,-200.0,0.0003,2]
[425180198,1781563862000,-200.0,0.0003,2]
[425180193,1781563862000,-164.7,0.0003,2]
[425180194,1781563862000,-200.0,0.0003,2]
[425180191,1781563862000,-200.0,0.0003,2]
[425180190,1781563862000,-22500.0,0.0003,2]
[425180192,1781563862000,-150.0,0.0003,2]
[425180195,1781563862000,-20632.49411397,0.0003,7]
[425180199,1781563862000,-200.0,0.0003,2]
[425180201,1781563862000,-163.0,0.0003002,30]
[425180202,1781563862000,-1000.0,0.00030024,7]
[425180215,1781563862000,-800.0,0.00030048,11]
[425180205,1781563862000,-500.0,0.00030037,14]
[425180206,1781563862000,-500.0,0.00030037,14]
[425180210,1781563862000,-800.0,0.00030048,11]
[425180208,1781563862000,-955.0,0.00030037,2]
[425180203,1781563862000,-150.0,0.00030036,2]
[425180209,1781563862000,-800.0,0.00030048,11]
[425180207,1781563862000,-503.09,0.00030037,14]
[425180211,1781563862000,-800.0,0.00030048,11]
[425180213,1781563862000,-800.0,0.00030048,11]
[425180220,1781563862000,-800.0,0.00030048,11]
[425180219,1781563862000,-800.0,0.00030048,11]
[425180221,1781563862000,-800.0,0.00030048,11]
[425180212,1781563862000,-800.0,0.00030048,11]
[425180204,1781563862000,-500.0,0.00030037,14]
[425180250,1781563862000,-605.0,0.00030085,30]
[425180247,1781563862000,-2214.0,0.00030085,30]
[425180254,1781563862000,-620.0,0.00030089,30]
[425180276,1781563862000,-22500.0,0.00030125,2]
[425180281,1781563862000,-1004.18135021,0.0003013,30]
[425180283,1781563862000,-647.37454339,0.0003013,2]
[425180282,1781563862000,-14148.08580473,0.0003013,2]
[425180284,1781563862000,-205.86846489,0.0003013,2]
[425180285,1781563862000,-481.00534063,0.0003013,2]
[425180286,1781563862000,-302.97327201,0.0003013,2]
[425180289,1781563862000,-98908.82930664,0.0003013,2]
[425180287,1781563862000,-1921.05541089,0.0003013,2]
[425180290,1781563862000,-200714.64272165,0.0003013,7]
[425180291,1781563862000,-1911.15,0.00030136,30]
[425180288,1781563862000,-30074.97252951,0.0003013,2]
[425180294,1781563862000,-2823.03,0.00030136,30]
[425180293,1781563862000,-2859.78,0.00030136,30]
[425180295,1781563862000,-1974.46,0.00030136,30]
[425180301,1781563862000,-316.69473213,0.00030137,7]
[425180302,1781563862000,-475.04209819,0.00030137,7]
[425180292,1781563862000,-4344.91,0.00030136,30]
[425180297,1781563862000,-610.92193184,0.00030137,2]
[425180298,1781563862000,-558.44,0.00030137,2]
[425180296,1781563862000,-2494.71,0.00030136,30]
[425180299,1781563862000,-182.44,0.00030137,7]
[425180300,1781563862000,-158.34736606,0.00030137,7]
[425180304,1781563862000,-237.13459978,0.00030137,7]
[425180248,1781563862000,-153.0,0.00030085,30]
[425180277,1781563862000,-12500.0,0.00030125,2]
[425180273,1781563862000,-177.87462146,0.0003011,14]
[425180303,1781563862000,-633.38946425,0.00030137,7]
[425180272,1781563862000,-319.20823299,0.0003011,14]
[425180278,1781563862000,-22500.0,0.00030125,2]
[425180246,1781563862000,-220.68,0.00030082,2]
[425180249,1781563862000,-159.0,0.00030085,30]
[425180251,1781563862000,-224.0,0.00030085,30]
[425180253,1781563862000,-1368.71,0.00030088,2]
[425180252,1781563862000,-166.0,0.00030085,30]
[425180257,1781563862000,-282.0,0.00030089,30]
[425180255,1781563862000,-160.0,0.00030089,30]
[425180259,1781563862000,-267.0,0.00030089,30]
[425180260,1781563862000,-2875.62709623,0.000301,2]
[425180258,1781563862000,-153.0,0.00030089,30]
[425180261,1781563862000,-3906.79,0.000301,2]
[425180263,1781563862000,-349.161993,0.000301,14]
[425180256,1781563862000,-152.0,0.00030089,30]
[425180265,1781563862000,-338.946264,0.000301,14]
[425180262,1781563862000,-349.161993,0.000301,7]
[425180279,1781563862000,-166.21677542,0.00030129,7]
[425180275,1781563862000,-12500.0,0.00030125,2]
[425180274,1781563862000,-1368.71,0.00030115,5]
[425180271,1781563862000,-819.98109147,0.0003011,14]
[425180280,1781563862000,-1096.23301306,0.0003013,2]
[425180269,1781563862000,-235.5218765,0.0003011,14]
[425180268,1781563862000,-554.76516002,0.0003011,14]
[425180264,1781563862000,-338.946264,0.000301,7]
[425180267,1781563862000,-295.60752749,0.0003011,14]
[425180266,1781563862000,-632.00093091,0.0003011,14]
[425180270,1781563862000,-1744.15429531,0.0003011,14]
[425180339,1781563863000,-1017.05536429,0.0003014,4]
[425180340,1781563863000,-1017.05536429,0.0003014,4]
[425180346,1781563863000,-1017.05536429,0.0003014,4]
[425180342,1781563863000,-1017.05536429,0.0003014,4]
[425180332,1781563863000,-500.0,0.00030137,2]
[425180338,1781563863000,-1017.05536429,0.0003014,4]
[425180337,1781563863000,-1017.05536429,0.0003014,4]
[425180335,1781563863000,-200.0,0.00030137,2]
[425180358,1781563863000,-2373.12918334,0.0003014,4]
[425180341,1781563863000,-1017.05536429,0.0003014,4]
[425180343,1781563863000,-1017.05536429,0.0003014,4]
[425180352,1781563863000,-1017.05536429,0.0003014,4]
[425180347,1781563863000,-1017.05536429,0.0003014,4]
[425180345,1781563863000,-1017.05536429,0.0003014,4]
[425180349,1781563863000,-1017.05536429,0.0003014,4]
[425180348,1781563863000,-1017.05536429,0.0003014,4]
[425180351,1781563863000,-1017.05536429,0.0003014,4]
[425180353,1781563863000,-1017.05536429,0.0003014,4]
[425180354,1781563863000,-1017.05536429,0.0003014,4]
[425180357,1781563863000,-2373.12918334,0.0003014,4]
[425180350,1781563863000,-1017.05536429,0.0003014,4]
[425180355,1781563863000,-1017.05536429,0.0003014,4]
[425180356,1781563863000,-1017.05,0.0003014,4]
[425180334,1781563863000,-200.0,0.00030137,2]
[425180344,1781563863000,-1017.05536429,0.0003014,4]
[425180333,1781563863000,-394.15118437,0.00030137,2]
[425180321,1781563863000,-1389.63,0.00030137,30]
[425180331,1781563863000,-500.0,0.00030137,2]
[425180313,1781563863000,-500.0,0.00030137,3]
[425180310,1781563863000,-500.0,0.00030137,3]
[425180305,1781563863000,-187.09754399,0.00030137,40]
[425180306,1781563863000,-380.0,0.00030137,120]
[425180309,1781563863000,-500.0,0.00030137,3]
[425180311,1781563863000,-152.3591,0.00030137,30]
[425180307,1781563863000,-500.0,0.00030137,3]
[425180308,1781563863000,-162.8153,0.00030137,2]
[425180312,1781563863000,-2724.0,0.00030137,120]
[425180314,1781563863000,-500.0,0.00030137,3]
[425180317,1781563863000,-150.0,0.00030137,7]
[425180318,1781563863000,-266.0,0.00030137,2]
[425180315,1781563863000,-2885.36850104,0.00030137,120]
[425180324,1781563863000,-1500.0,0.00030137,15]
[425180316,1781563863000,-348.14337737,0.00030137,120]
[425180319,1781563863000,-285.0,0.00030137,2]
[425180323,1781563863000,-1500.0,0.00030137,15]
[425180322,1781563863000,-1500.0,0.00030137,15]
[425180325,1781563863000,-200.0,0.00030137,2]
[425180320,1781563863000,-222.0,0.00030137,2]
[425180327,1781563863000,-500.0,0.00030137,2]
[425180328,1781563863000,-500.0,0.00030137,2]
[425180326,1781563863000,-500.0,0.00030137,2]
[425180329,1781563863000,-500.0,0.00030137,2]
[425180330,1781563863000,-500.0,0.00030137,2]
[425180336,1781563863000,-1958.1,0.00030137,7]
[425180359,1781563863000,-2373.12918334,0.0003014,4]
[425180384,1781563863000,-582.46719974,0.0003014,4]
[425180362,1781563863000,-2373.12918334,0.0003014,4]
[425180393,1781563863000,-582.46719974,0.0003014,4]
[425180391,1781563863000,-582.46719974,0.0003014,4]
[425180394,1781563863000,-582.46719974,0.0003014,4]
[425180396,1781563863000,-582.46,0.0003014,4]
[425180398,1781563863000,-1359.09013272,0.0003014,4]
[425180397,1781563863000,-1359.09013272,0.0003014,4]
[425180400,1781563863000,-1359.09013272,0.0003014,4]
[425180395,1781563863000,-582.46719974,0.0003014,4]
[425180401,1781563863000,-1359.09013272,0.0003014,4]
[425180403,1781563863000,-1359.09013272,0.0003014,4]
[425180399,1781563863000,-1359.09013272,0.0003014,4]
[425180405,1781563863000,-1359.09013272,0.0003014,4]
[425180404,1781563863000,-1359.09013272,0.0003014,4]
[425180413,1781563863000,-1359.09013272,0.0003014,4]
[425180407,1781563863000,-1359.09013272,0.0003014,4]
[425180406,1781563863000,-1359.09013272,0.0003014,4]
[425180411,1781563863000,-1359.09013272,0.0003014,4]
[425180408,1781563863000,-1359.09013272,0.0003014,4]
[425180414,1781563863000,-1359.09013272,0.0003014,4]
[425180412,1781563863000,-1359.09013272,0.0003014,4]
[425180409,1781563863000,-1359.09013272,0.0003014,4]
[425180410,1781563863000,-1359.09013272,0.0003014,4]
[425180416,1781563863000,-1359.09,0.0003014,4]
[425180415,1781563863000,-1359.09013272,0.0003014,4]
[425180361,1781563863000,-2373.12918334,0.0003014,4]
[425180392,1781563863000,-582.46719974,0.0003014,4]
[425180389,1781563863000,-582.46719974,0.0003014,4]
[425180402,1781563863000,-1359.09013272,0.0003014,4]
[425180386,1781563863000,-582.46719974,0.0003014,4]
[425180366,1781563863000,-2373.12918334,0.0003014,4]
[425180388,1781563863000,-582.46719974,0.0003014,4]
[425180365,1781563863000,-2373.12918334,0.0003014,4]
[425180368,1781563863000,-2373.12918334,0.0003014,4]
[425180364,1781563863000,-2373.12918334,0.0003014,4]
[425180363,1781563863000,-2373.12918334,0.0003014,4]
[425180360,1781563863000,-2373.12918334,0.0003014,4]
[425180367,1781563863000,-2373.12918334,0.0003014,4]
[425180371,1781563863000,-2373.12918334,0.0003014,4]
[425180370,1781563863000,-2373.12918334,0.0003014,4]
[425180372,1781563863000,-2373.12918334,0.0003014,4]
[425180373,1781563863000,-2373.12918334,0.0003014,4]
[425180374,1781563863000,-2373.12918334,0.0003014,4]
[425180369,1781563863000,-2373.12918334,0.0003014,4]
[425180387,1781563863000,-582.46719974,0.0003014,4]
[425180390,1781563863000,-582.46719974,0.0003014,4]
[425180376,1781563863000,-2373.12,0.0003014,4]
[425180383,1781563863000,-582.46719974,0.0003014,4]
[425180385,1781563863000,-582.46719974,0.0003014,4]
[425180382,1781563863000,-582.46719974,0.0003014,4]
[425180381,1781563863000,-582.46719974,0.0003014,4]
[425180380,1781563863000,-582.46719974,0.0003014,4]
[425180375,1781563863000,-2373.12918334,0.0003014,4]
[425180378,1781563863000,-582.46719974,0.0003014,4]